[Event "Titled Tuesday Blitz November 2 2021"]
[White "Pridorozhni, Aleksei"]
[Black "Nazari, Arad"]
[WhiteFideId "4127870"]
[BlackFideId "12577324"]
[WhiteElo "2565"]
[BlackElo "2119"]
[Result "1-0"]
[Round "02"]
[TimeControl "180+1"]
[Date "2021.11.02"]
[WhiteClock "0:01:29"]
[BlackClock "0:00:49"]

1. e4 {[%clk 0:03:00]}  c5 {[%clk 0:02:56]} 2. Nc3 {[%clk 0:03:00]}  Nc6 {[%clk 0:02:56]} 3. Bb5 {[%clk 0:03:00]}  Nd4 {[%clk 0:02:56]} 4. Nf3 {[%clk 0:03:00]}  Nxb5 {[%clk 0:02:55]} 5. Nxb5 {[%clk 0:03:01]}  g6 {[%clk 0:02:55]} 6. d4 {[%clk 0:03:01]}  Bg7 {[%clk 0:02:54]} 7. dxc5 {[%clk 0:03:01]}  Qa5+ {[%clk 0:02:54]} 8. Nc3 {[%clk 0:03:01]}  Nf6 {[%clk 0:02:51]} 9. O-O {[%clk 0:03:01]}  O-O {[%clk 0:02:50]} 10. Be3 {[%clk 0:02:49]}  Ng4 {[%clk 0:02:46]} 11. Bd4 {[%clk 0:02:49]}  e5 {[%clk 0:02:46]} 12. b4 {[%clk 0:02:49]}  Qxb4 {[%clk 0:02:41]} 13. Nd5 {[%clk 0:02:49]}  Qc4 {[%clk 0:02:31]} 14. Bb2 {[%clk 0:02:49]}  Qxe4 {[%clk 0:02:29]} 15. Re1 {[%clk 0:02:40]}  Qc4 {[%clk 0:02:27]} 16. h3 {[%clk 0:02:29]}  Nf6 {[%clk 0:02:15]} 17. Nc7 {[%clk 0:02:21]}  Rb8 {[%clk 0:02:10]} 18. Bxe5 {[%clk 0:02:21]}  Nh5 {[%clk 0:02:00]} 19. Qd6 {[%clk 0:02:13]}  b6 {[%clk 0:01:44]} 20. Bxg7 {[%clk 0:01:59]}  Nxg7 {[%clk 0:01:42]} 21. Nd5 {[%clk 0:01:48]}  Bb7 {[%clk 0:01:24]} 22. Nf6+ {[%clk 0:01:48]}  Kh8 {[%clk 0:01:24]} 23. Ne5 {[%clk 0:01:45]}  Nf5 {[%clk 0:01:02]} 24. Qxb8 {[%clk 0:01:37]}  Rxb8 {[%clk 0:01:00]} 25. Nxc4 {[%clk 0:01:37]}  bxc5 {[%clk 0:00:53]} 26. Rab1 {[%clk 0:01:33]}  d5 {[%clk 0:00:49]} 27. Na5 {[%clk 0:01:30]}  Nd6 {[%clk 0:00:47]} 28. Nxb7 {[%clk 0:01:29]}  Rxb7 {[%clk 0:00:47]} 29. Rxb7 {[%clk 0:01:29]}  Nxb7 {[%clk 0:00:48]} 30. Re7 {[%clk 0:01:29]}  Nd6 {[%clk 0:00:48]} 31. Rd7 {[%clk 0:01:29]}  Kg7 {[%clk 0:00:49]} 32. Rxd6 {[%clk 0:01:29]} 1-0


[Site "https://www.chess.com"]

[Event "Titled Tuesday Blitz November 2 2021"]
[White "Rasulov, Vugar"]
[Black "Kalogeris, Ioannis"]
[WhiteFideId "13402390"]
[BlackFideId "4239563"]
[WhiteElo "2560"]
[BlackElo "2287"]
[Result "1-0"]
[Round "02"]
[TimeControl "180+1"]
[Date "2021.11.02"]
[WhiteClock "0:01:14"]
[BlackClock "0:00:04"]

1. d4 {[%clk 0:03:00]}  Nf6 {[%clk 0:02:59]} 2. c4 {[%clk 0:03:00]}  e6 {[%clk 0:02:59]} 3. Nf3 {[%clk 0:03:01]}  b6 {[%clk 0:02:55]} 4. g3 {[%clk 0:03:01]}  Bb7 {[%clk 0:02:55]} 5. Bg2 {[%clk 0:03:01]}  g6 {[%clk 0:02:51]} 6. O-O {[%clk 0:03:00]}  Bg7 {[%clk 0:02:49]} 7. Nc3 {[%clk 0:02:59]}  Ne4 {[%clk 0:02:48]} 8. Nxe4 {[%clk 0:02:55]}  Bxe4 {[%clk 0:02:47]} 9. Bg5 {[%clk 0:02:55]}  Qc8 {[%clk 0:02:46]} 10. Qd2 {[%clk 0:02:55]}  h6 {[%clk 0:02:37]} 11. Bf4 {[%clk 0:02:54]}  Qb7 {[%clk 0:02:34]} 12. Rad1 {[%clk 0:02:53]}  d6 {[%clk 0:02:34]} 13. Rfe1 {[%clk 0:02:50]}  Nd7 {[%clk 0:02:29]} 14. d5 {[%clk 0:02:50]}  e5 {[%clk 0:02:19]} 15. Be3 {[%clk 0:02:49]}  f5 {[%clk 0:02:12]} 16. Nh4 {[%clk 0:02:34]}  Bxg2 {[%clk 0:02:06]} 17. Nxg6 {[%clk 0:02:35]}  Rg8 {[%clk 0:01:16]} 18. Kxg2 {[%clk 0:02:27]}  f4 {[%clk 0:01:16]} 19. Bxf4 {[%clk 0:02:27]}  Bf6 {[%clk 0:01:02]} 20. Qc2 {[%clk 0:02:15]}  exf4 {[%clk 0:01:01]} 21. Nxf4 {[%clk 0:02:16]}  O-O-O {[%clk 0:01:00]} 22. b4 {[%clk 0:02:16]}  Be5 {[%clk 0:00:48]} 23. Ne6 {[%clk 0:02:16]}  Rde8 {[%clk 0:00:49]} 24. e4 {[%clk 0:02:13]}  Nf6 {[%clk 0:00:36]} 25. c5 {[%clk 0:02:11]}  dxc5 {[%clk 0:00:29]} 26. bxc5 {[%clk 0:02:12]}  h5 {[%clk 0:00:25]} 27. cxb6 {[%clk 0:02:01]}  axb6 {[%clk 0:00:25]} 28. f4 {[%clk 0:01:43]}  Rxe6 {[%clk 0:00:20]} 29. dxe6 {[%clk 0:01:42]}  Bxf4 {[%clk 0:00:20]} 30. e7 {[%clk 0:01:39]}  h4 {[%clk 0:00:19]} 31. Rd8+ {[%clk 0:01:38]}  Rxd8 {[%clk 0:00:17]} 32. exd8=Q+ {[%clk 0:01:39]}  Kxd8 {[%clk 0:00:18]} 33. gxf4 {[%clk 0:01:40]}  Kc8 {[%clk 0:00:12]} 34. Kf3 {[%clk 0:01:28]}  Kb8 {[%clk 0:00:12]} 35. Rd1 {[%clk 0:01:24]}  Qc8 {[%clk 0:00:12]} 36. f5 {[%clk 0:01:24]}  Qg8 {[%clk 0:00:12]} 37. Qg2 {[%clk 0:01:22]}  Qc4 {[%clk 0:00:09]} 38. Qe2 {[%clk 0:01:21]}  Qc3+ {[%clk 0:00:07]} 39. Rd3 {[%clk 0:01:19]}  Qe5 {[%clk 0:00:07]} 40. a4 {[%clk 0:01:15]}  h3 {[%clk 0:00:07]} 41. a5 {[%clk 0:01:14]}  bxa5 {[%clk 0:00:07]} 42. Rb3+ {[%clk 0:01:11]}  Ka7 {[%clk 0:00:08]} 43. Rb5 {[%clk 0:01:11]}  Qc3+ {[%clk 0:00:07]} 44. Qe3+ {[%clk 0:01:11]}  Qxe3+ {[%clk 0:00:05]} 45. Kxe3 {[%clk 0:01:12]}  Ng4+ {[%clk 0:00:05]} 46. Kf4 {[%clk 0:01:12]}  Nxh2 {[%clk 0:00:06]} 47. Rxa5+ {[%clk 0:01:13]}  Kb6 {[%clk 0:00:06]} 48. Ra3 {[%clk 0:01:13]}  Nf3 {[%clk 0:00:03]} 49. Rxf3 {[%clk 0:01:13]}  h2 {[%clk 0:00:04]} 50. Rh3 {[%clk 0:01:14]} 1-0


[Site "https://www.chess.com"]

[Event "Titled Tuesday Blitz November 2 2021"]
[White "Savchenko, Boris"]
[Black "Toropov, Pavel"]
[WhiteFideId "4147332"]
[BlackFideId "24129178"]
[WhiteElo "2526"]
[BlackElo "2368"]
[Result "0-1"]
[Round "02"]
[TimeControl "180+1"]
[Date "2021.11.02"]
[WhiteClock "0:02:04"]
[BlackClock "0:01:44"]

1. e4 {[%clk 0:03:00]}  e6 {[%clk 0:02:59]} 2. d4 {[%clk 0:03:00]}  d5 {[%clk 0:03:00]} 3. Nc3 {[%clk 0:03:01]}  dxe4 {[%clk 0:03:00]} 4. Nxe4 {[%clk 0:03:01]}  Nd7 {[%clk 0:03:00]} 5. Bd3 {[%clk 0:03:00]}  Ngf6 {[%clk 0:02:57]} 6. c3 {[%clk 0:03:00]}  Be7 {[%clk 0:02:53]} 7. Nf3 {[%clk 0:02:58]}  O-O {[%clk 0:02:51]} 8. Qe2 {[%clk 0:02:45]}  b6 {[%clk 0:02:46]} 9. Ng3 {[%clk 0:02:37]}  Bb7 {[%clk 0:02:45]} 10. O-O {[%clk 0:02:34]}  c5 {[%clk 0:02:41]} 11. Rd1 {[%clk 0:02:34]}  Qc8 {[%clk 0:02:36]} 12. Ne5 {[%clk 0:02:32]}  cxd4 {[%clk 0:02:29]} 13. cxd4 {[%clk 0:02:33]}  Nxe5 {[%clk 0:02:14]} 14. dxe5 {[%clk 0:02:33]}  Qc6 {[%clk 0:02:14]} 15. Qf1 {[%clk 0:02:28]}  Nd5 {[%clk 0:02:04]} 16. Bb5 {[%clk 0:02:08]}  Qc7 {[%clk 0:02:01]} 17. Qe2 {[%clk 0:02:05]}  a6 {[%clk 0:01:46]} 18. Bd3 {[%clk 0:02:04]}  Nb4 {[%clk 0:01:44]} 0-1


[Site "https://www.chess.com"]

[Event "Titled Tuesday Blitz November 2 2021"]
[White "Shankland, Sam"]
[Black "Vlassov, Nikolai"]
[WhiteFideId "2004887"]
[BlackFideId "4103360"]
[WhiteElo "2660"]
[BlackElo "2407"]
[Result "0-1"]
[Round "02"]
[TimeControl "180+1"]
[Date "2021.11.02"]
[WhiteClock "0:00:28"]
[BlackClock "0:00:37"]

1. d4 {[%clk 0:03:00]}  Nf6 {[%clk 0:02:59]} 2. c4 {[%clk 0:02:59]}  Nc6 {[%clk 0:02:58]} 3. Nf3 {[%clk 0:02:56]}  e6 {[%clk 0:02:58]} 4. a3 {[%clk 0:02:56]}  d5 {[%clk 0:02:58]} 5. Nc3 {[%clk 0:02:55]}  dxc4 {[%clk 0:02:58]} 6. e4 {[%clk 0:02:52]}  Na5 {[%clk 0:02:58]} 7. Bxc4 {[%clk 0:02:49]}  Nxc4 {[%clk 0:02:58]} 8. Qa4+ {[%clk 0:02:50]}  Bd7 {[%clk 0:02:58]} 9. Qxc4 {[%clk 0:02:50]}  Be7 {[%clk 0:02:58]} 10. O-O {[%clk 0:02:48]}  O-O {[%clk 0:02:57]} 11. Bg5 {[%clk 0:02:48]}  h6 {[%clk 0:02:54]} 12. Bh4 {[%clk 0:02:48]}  Bc6 {[%clk 0:02:49]} 13. Rfe1 {[%clk 0:02:47]}  Nd7 {[%clk 0:02:44]} 14. Bxe7 {[%clk 0:02:33]}  Qxe7 {[%clk 0:02:44]} 15. Rad1 {[%clk 0:02:27]}  Nb6 {[%clk 0:02:38]} 16. Qc5 {[%clk 0:02:26]}  Qxc5 {[%clk 0:02:16]} 17. dxc5 {[%clk 0:02:27]}  Na4 {[%clk 0:02:16]} 18. Nxa4 {[%clk 0:02:26]}  Bxa4 {[%clk 0:02:16]} 19. Rd4 {[%clk 0:02:27]}  Bb5 {[%clk 0:02:07]} 20. Red1 {[%clk 0:02:26]}  f6 {[%clk 0:02:03]} 21. h4 {[%clk 0:02:22]}  e5 {[%clk 0:01:57]} 22. R4d2 {[%clk 0:02:09]}  Bc6 {[%clk 0:01:51]} 23. Re1 {[%clk 0:02:05]}  Rfd8 {[%clk 0:01:50]} 24. g3 {[%clk 0:01:58]}  Kf7 {[%clk 0:01:41]} 25. Re3 {[%clk 0:01:53]}  Ke6 {[%clk 0:01:39]} 26. Kf1 {[%clk 0:01:50]}  Rxd2 {[%clk 0:01:34]} 27. Nxd2 {[%clk 0:01:51]}  Rd8 {[%clk 0:01:34]} 28. Ke1 {[%clk 0:01:51]}  g5 {[%clk 0:01:22]} 29. hxg5 {[%clk 0:01:47]}  hxg5 {[%clk 0:01:22]} 30. b4 {[%clk 0:01:45]}  Rh8 {[%clk 0:01:20]} 31. Nb3 {[%clk 0:01:42]}  Rh1+ {[%clk 0:01:19]} 32. Ke2 {[%clk 0:01:42]}  Rb1 {[%clk 0:01:09]} 33. Na5 {[%clk 0:01:41]}  Bb5+ {[%clk 0:01:08]} 34. Kf3 {[%clk 0:01:39]}  b6 {[%clk 0:01:08]} 35. cxb6 {[%clk 0:01:36]}  cxb6 {[%clk 0:01:03]} 36. Nb3 {[%clk 0:01:34]}  Ba4 {[%clk 0:00:59]} 37. Nd2 {[%clk 0:01:31]}  Rb2 {[%clk 0:00:58]} 38. Nf1 {[%clk 0:01:24]}  Bd1+ {[%clk 0:00:55]} 39. Kg2 {[%clk 0:01:24]}  g4 {[%clk 0:00:56]} 40. Nh2 {[%clk 0:01:23]}  f5 {[%clk 0:00:51]} 41. exf5+ {[%clk 0:01:22]}  Kxf5 {[%clk 0:00:51]} 42. Rd3 {[%clk 0:01:20]}  Bc2 {[%clk 0:00:50]} 43. Rd7 {[%clk 0:00:41]}  Be4+ {[%clk 0:00:49]} 44. Kg1 {[%clk 0:00:42]}  Rb1+ {[%clk 0:00:49]} 45. Nf1 {[%clk 0:00:42]}  Bc6 {[%clk 0:00:41]} 46. Rf7+ {[%clk 0:00:35]}  Ke6 {[%clk 0:00:40]} 47. Rxa7 {[%clk 0:00:32]}  Bb5 {[%clk 0:00:41]} 48. Rb7 {[%clk 0:00:33]}  Bxf1 {[%clk 0:00:39]} 49. Rxb6+ {[%clk 0:00:32]}  Kf5 {[%clk 0:00:40]} 50. Kh2 {[%clk 0:00:28]}  Be2 {[%clk 0:00:37]} 0-1


[Site "https://www.chess.com"]

[Event "Titled Tuesday Blitz November 2 2021"]
[White "Siva Mahadevan"]
[Black "Le Goff, Ronan"]
[WhiteFideId "25043153"]
[BlackFideId "612073"]
[WhiteElo "2203"]
[BlackElo "2276"]
[Result "1-0"]
[Round "02"]
[TimeControl "180+1"]
[Date "2021.11.02"]
[WhiteClock "0:02:08"]
[BlackClock "0:00:01"]

1. e4 {[%clk 0:03:00]}  e5 {[%clk 0:02:53]} 2. Nf3 {[%clk 0:03:00]}  Nc6 {[%clk 0:02:53]} 3. Bb5 {[%clk 0:03:00]}  Nf6 {[%clk 0:02:52]} 4. O-O {[%clk 0:03:01]}  Nxe4 {[%clk 0:02:38]} 5. Re1 {[%clk 0:03:01]}  Nd6 {[%clk 0:02:36]} 6. Nxe5 {[%clk 0:03:02]}  Be7 {[%clk 0:01:55]} 7. Bf1 {[%clk 0:03:03]}  Nxe5 {[%clk 0:01:46]} 8. Rxe5 {[%clk 0:03:04]}  O-O {[%clk 0:01:45]} 9. d4 {[%clk 0:03:05]}  Bf6 {[%clk 0:01:27]} 10. Bd3 {[%clk 0:03:04]}  Re8 {[%clk 0:01:04]} 11. Bf4 {[%clk 0:03:04]}  Re7 {[%clk 0:00:55]} 12. Nc3 {[%clk 0:03:03]}  Bxe5 {[%clk 0:00:54]} 13. dxe5 {[%clk 0:03:03]}  Ne8 {[%clk 0:00:54]} 14. Nd5 {[%clk 0:03:03]}  Re6 {[%clk 0:00:54]} 15. Qh5 {[%clk 0:03:03]}  g6 {[%clk 0:00:52]} 16. Qh6 {[%clk 0:03:04]}  d6 {[%clk 0:00:33]} 17. Bg5 {[%clk 0:03:03]}  f6 {[%clk 0:00:08]} 18. Nxf6+ {[%clk 0:03:01]}  Nxf6 {[%clk 0:00:07]} 19. exf6 {[%clk 0:03:02]}  Qf8 {[%clk 0:00:06]} 20. Bc4 {[%clk 0:03:02]}  Qf7 {[%clk 0:00:04]} 21. Bxe6 {[%clk 0:02:59]}  Bxe6 {[%clk 0:00:05]} 22. Re1 {[%clk 0:03:00]}  Re8 {[%clk 0:00:05]} 23. h4 {[%clk 0:03:00]}  Bd7 {[%clk 0:00:03]} 24. Re7 {[%clk 0:02:47]}  Rxe7 {[%clk 0:00:03]} 25. fxe7 {[%clk 0:02:48]}  Be8 {[%clk 0:00:03]} 26. b3 {[%clk 0:02:47]}  a5 {[%clk 0:00:02]} 27. h5 {[%clk 0:02:37]}  b5 {[%clk 0:00:02]} 28. hxg6 {[%clk 0:02:36]}  hxg6 {[%clk 0:00:02]} 29. f4 {[%clk 0:02:35]}  c5 {[%clk 0:00:02]} 30. Qh4 {[%clk 0:02:35]}  d5 {[%clk 0:00:02]} 31. Bf6 {[%clk 0:02:36]}  Qh7 {[%clk 0:00:02]} 32. Qg5 {[%clk 0:02:36]}  Qh5 {[%clk 0:00:01]} 33. Qxh5 {[%clk 0:02:11]}  gxh5 {[%clk 0:00:01]} 34. Be5 {[%clk 0:02:12]}  Kf7 {[%clk 0:00:01]} 35. Bd6 {[%clk 0:02:13]}  c4 {[%clk 0:00:02]} 36. Kf2 {[%clk 0:02:13]}  cxb3 {[%clk 0:00:02]} 37. cxb3 {[%clk 0:02:13]}  a4 {[%clk 0:00:02]} 38. Ke3 {[%clk 0:02:13]}  axb3 {[%clk 0:00:02]} 39. axb3 {[%clk 0:02:14]}  Ke6 {[%clk 0:00:02]} 40. Bc5 {[%clk 0:02:14]}  Bg6 {[%clk 0:00:02]} 41. Kd4 {[%clk 0:02:12]}  Be8 {[%clk 0:00:02]} 42. b4 {[%clk 0:02:10]}  Bd7 {[%clk 0:00:01]} 43. f5+ {[%clk 0:02:08]} 1-0


[Site "https://www.chess.com"]

[Event "Titled Tuesday Blitz November 2 2021"]
[White "Skatchkov, Valery"]
[Black "Muradli, Mahammad"]
[WhiteFideId "24195812"]
[BlackFideId "13409301"]
[WhiteElo "2195"]
[BlackElo "2474"]
[Result "1-0"]
[Round "02"]
[TimeControl "180+1"]
[Date "2021.11.02"]
[WhiteClock "0:00:17"]
[BlackClock "0:00:02"]

1. d4 {[%clk 0:03:00]}  Nf6 {[%clk 0:03:00]} 2. c4 {[%clk 0:02:59]}  c5 {[%clk 0:03:00]} 3. d5 {[%clk 0:02:59]}  b5 {[%clk 0:03:01]} 4. Nf3 {[%clk 0:02:59]}  d6 {[%clk 0:03:00]} 5. cxb5 {[%clk 0:02:57]}  a6 {[%clk 0:03:00]} 6. e3 {[%clk 0:02:55]}  g6 {[%clk 0:02:59]} 7. Nc3 {[%clk 0:02:54]}  Bg7 {[%clk 0:03:00]} 8. a4 {[%clk 0:02:55]}  axb5 {[%clk 0:02:59]} 9. Bxb5+ {[%clk 0:02:54]}  Nbd7 {[%clk 0:02:52]} 10. O-O {[%clk 0:02:54]}  O-O {[%clk 0:02:51]} 11. h3 {[%clk 0:02:48]}  Ne8 {[%clk 0:02:51]} 12. Bc6 {[%clk 0:02:41]}  Rb8 {[%clk 0:02:46]} 13. a5 {[%clk 0:02:37]}  Nc7 {[%clk 0:02:46]} 14. e4 {[%clk 0:02:26]}  Ba6 {[%clk 0:02:45]} 15. Re1 {[%clk 0:02:26]}  Rb4 {[%clk 0:02:41]} 16. Bf4 {[%clk 0:02:24]}  Rxb2 {[%clk 0:02:38]} 17. e5 {[%clk 0:02:24]}  Rb4 {[%clk 0:02:38]} 18. Bg3 {[%clk 0:02:23]}  Nb8 {[%clk 0:02:34]} 19. Na2 {[%clk 0:02:12]}  Rc4 {[%clk 0:02:14]} 20. Rb1 {[%clk 0:01:46]}  Nxc6 {[%clk 0:02:00]} 21. exd6 {[%clk 0:01:46]}  exd6 {[%clk 0:01:51]} 22. dxc6 {[%clk 0:01:46]}  Nb5 {[%clk 0:01:52]} 23. Qb3 {[%clk 0:01:23]}  d5 {[%clk 0:01:44]} 24. c7 {[%clk 0:01:23]}  Qc8 {[%clk 0:01:32]} 25. Red1 {[%clk 0:01:16]}  Nxc7 {[%clk 0:01:28]} 26. Qb6 {[%clk 0:01:15]}  Ne6 {[%clk 0:01:23]} 27. Rxd5 {[%clk 0:01:12]}  Ra4 {[%clk 0:01:23]} 28. Rd2 {[%clk 0:01:02]}  Bc4 {[%clk 0:01:21]} 29. Nc1 {[%clk 0:00:43]}  Nd4 {[%clk 0:01:08]} 30. Nxd4 {[%clk 0:00:40]}  cxd4 {[%clk 0:01:09]} 31. Nd3 {[%clk 0:00:39]}  Bxd3 {[%clk 0:01:04]} 32. Rxd3 {[%clk 0:00:40]}  Qf5 {[%clk 0:01:04]} 33. Rbd1 {[%clk 0:00:36]}  Rxa5 {[%clk 0:01:02]} 34. Rxd4 {[%clk 0:00:28]}  Bxd4 {[%clk 0:01:00]} 35. Qxd4 {[%clk 0:00:29]}  h5 {[%clk 0:00:58]} 36. Kh2 {[%clk 0:00:28]}  Re8 {[%clk 0:00:50]} 37. Rc1 {[%clk 0:00:26]}  Rd5 {[%clk 0:00:47]} 38. Qb2 {[%clk 0:00:24]}  Kh7 {[%clk 0:00:47]} 39. Qb7 {[%clk 0:00:20]}  Rd7 {[%clk 0:00:45]} 40. Qc6 {[%clk 0:00:20]}  Rd2 {[%clk 0:00:39]} 41. Qxe8 {[%clk 0:00:19]}  g5 {[%clk 0:00:08]} 42. Rc8 {[%clk 0:00:19]}  Qf6 {[%clk 0:00:04]} 43. Qg8+ {[%clk 0:00:19]}  Kh6 {[%clk 0:00:04]} 44. h4 {[%clk 0:00:19]}  gxh4 {[%clk 0:00:03]} 45. Qh8+ {[%clk 0:00:17]}  Qxh8 {[%clk 0:00:03]} 46. Rxh8+ {[%clk 0:00:18]}  Kg7 {[%clk 0:00:04]} 47. Be5+ {[%clk 0:00:19]}  f6 {[%clk 0:00:04]} 48. Bc3 {[%clk 0:00:19]}  Rxf2 {[%clk 0:00:03]} 49. Rc8 {[%clk 0:00:19]}  Rf4 {[%clk 0:00:03]} 50. Kh3 {[%clk 0:00:20]}  Kg6 {[%clk 0:00:04]} 51. Bd2 {[%clk 0:00:19]}  Rg4 {[%clk 0:00:03]} 52. Be1 {[%clk 0:00:18]}  Kg5 {[%clk 0:00:03]} 53. Rc5+ {[%clk 0:00:18]}  f5 {[%clk 0:00:02]} 54. Rc8 {[%clk 0:00:18]}  Kf4 {[%clk 0:00:02]} 55. Bxh4 {[%clk 0:00:18]}  Ke4 {[%clk 0:00:01]} 56. Re8+ {[%clk 0:00:18]}  Kf4 {[%clk 0:00:01]} 57. Be1 {[%clk 0:00:17]}  Rg6 {[%clk 0:00:02]} 58. Bd2# {[%clk 0:00:17]} 1-0


[Site "https://www.chess.com"]

[Event "Titled Tuesday Blitz November 2 2021"]
[White "Timofeev, Artyom"]
[Black "Manukyan, Artyom"]
[WhiteFideId "4140419"]
[BlackFideId "13305786"]
[WhiteElo "2591"]
[BlackElo "2034"]
[Result "1-0"]
[Round "02"]
[TimeControl "180+1"]
[Date "2021.11.02"]
[WhiteClock "0:00:27"]
[BlackClock "0:00:14"]

1. c4 {[%clk 0:03:00]}  e6 {[%clk 0:02:57]} 2. Nf3 {[%clk 0:02:58]}  d5 {[%clk 0:02:58]} 3. b3 {[%clk 0:02:58]}  Nf6 {[%clk 0:02:59]} 4. Bb2 {[%clk 0:02:58]}  Be7 {[%clk 0:02:55]} 5. cxd5 {[%clk 0:02:55]}  exd5 {[%clk 0:02:52]} 6. e3 {[%clk 0:02:54]}  O-O {[%clk 0:02:52]} 7. Be2 {[%clk 0:02:54]}  c5 {[%clk 0:02:51]} 8. O-O {[%clk 0:02:50]}  b6 {[%clk 0:02:51]} 9. d4 {[%clk 0:02:50]}  Bb7 {[%clk 0:02:52]} 10. Nc3 {[%clk 0:02:47]}  Ne4 {[%clk 0:02:43]} 11. Rc1 {[%clk 0:02:44]}  Bf6 {[%clk 0:02:40]} 12. dxc5 {[%clk 0:02:31]}  bxc5 {[%clk 0:02:36]} 13. Na4 {[%clk 0:02:25]}  Bxb2 {[%clk 0:02:31]} 14. Nxb2 {[%clk 0:02:25]}  Nd7 {[%clk 0:02:29]} 15. Na4 {[%clk 0:02:25]}  a6 {[%clk 0:02:20]} 16. Nc3 {[%clk 0:02:19]}  Nxc3 {[%clk 0:02:06]} 17. Rxc3 {[%clk 0:02:19]}  Rc8 {[%clk 0:02:07]} 18. Qc1 {[%clk 0:02:12]}  Qf6 {[%clk 0:02:05]} 19. Rd1 {[%clk 0:02:08]}  Rfd8 {[%clk 0:02:05]} 20. h3 {[%clk 0:02:06]}  h6 {[%clk 0:02:04]} 21. a3 {[%clk 0:01:59]}  Qe7 {[%clk 0:01:53]} 22. Bf1 {[%clk 0:01:49]}  Nf6 {[%clk 0:01:52]} 23. Qb2 {[%clk 0:01:30]}  Ne4 {[%clk 0:01:46]} 24. Rcc1 {[%clk 0:01:30]}  Rd6 {[%clk 0:01:36]} 25. b4 {[%clk 0:01:27]}  Rb6 {[%clk 0:01:29]} 26. Qe5 {[%clk 0:01:24]}  Qxe5 {[%clk 0:00:56]} 27. Nxe5 {[%clk 0:01:23]}  cxb4 {[%clk 0:00:57]} 28. Rxc8+ {[%clk 0:01:22]}  Bxc8 {[%clk 0:00:58]} 29. axb4 {[%clk 0:01:22]}  Be6 {[%clk 0:00:58]} 30. Nd3 {[%clk 0:01:17]}  Kf8 {[%clk 0:00:53]} 31. f3 {[%clk 0:01:07]}  Nd6 {[%clk 0:00:45]} 32. Kf2 {[%clk 0:00:58]}  Nc4 {[%clk 0:00:45]} 33. Ra1 {[%clk 0:00:51]}  g5 {[%clk 0:00:43]} 34. g4 {[%clk 0:00:47]}  f6 {[%clk 0:00:29]} 35. f4 {[%clk 0:00:46]}  Kf7 {[%clk 0:00:26]} 36. Bg2 {[%clk 0:00:44]}  Nd6 {[%clk 0:00:25]} 37. Rc1 {[%clk 0:00:39]}  Ne4+ {[%clk 0:00:17]} 38. Bxe4 {[%clk 0:00:38]}  dxe4 {[%clk 0:00:18]} 39. Rc7+ {[%clk 0:00:38]}  Ke8 {[%clk 0:00:18]} 40. Nc5 {[%clk 0:00:36]}  Bd5 {[%clk 0:00:17]} 41. Rh7 {[%clk 0:00:27]}  Rxb4 {[%clk 0:00:16]} 42. Nxa6 {[%clk 0:00:27]}  Rb2+ {[%clk 0:00:16]} 43. Kg3 {[%clk 0:00:28]}  Re2 {[%clk 0:00:17]} 44. Nc7+ {[%clk 0:00:27]}  Kf8 {[%clk 0:00:16]} 45. Nxd5 {[%clk 0:00:27]}  Kg8 {[%clk 0:00:13]} 46. Nxf6+ {[%clk 0:00:27]}  Kf8 {[%clk 0:00:13]} 47. Nd5 {[%clk 0:00:27]}  Kg8 {[%clk 0:00:13]} 48. Rxh6 {[%clk 0:00:28]}  Kg7 {[%clk 0:00:14]} 49. fxg5 {[%clk 0:00:27]}  Rd2 {[%clk 0:00:14]} 1-0


[Site "https://www.chess.com"]

[Event "Titled Tuesday Blitz November 2 2021"]
[White "Weetik, Vjacheslav"]
[Black "Visakh N R"]
[WhiteFideId "4153472"]
[BlackFideId "25012223"]
[WhiteElo "2469"]
[BlackElo "2454"]
[Result "0-1"]
[Round "02"]
[TimeControl "180+1"]
[Date "2021.11.02"]
[WhiteClock "0:00:03"]
[BlackClock "0:00:36"]

1. Nf3 {[%clk 0:02:51]}  Nf6 {[%clk 0:02:55]} 2. g3 {[%clk 0:02:51]}  b6 {[%clk 0:02:51]} 3. Bg2 {[%clk 0:02:51]}  Bb7 {[%clk 0:02:51]} 4. O-O {[%clk 0:02:51]}  c5 {[%clk 0:02:51]} 5. c4 {[%clk 0:02:33]}  Nc6 {[%clk 0:02:47]} 6. Nc3 {[%clk 0:02:18]}  Rc8 {[%clk 0:02:46]} 7. b3 {[%clk 0:02:09]}  g6 {[%clk 0:02:45]} 8. d4 {[%clk 0:02:02]}  Nxd4 {[%clk 0:02:43]} 9. Nxd4 {[%clk 0:02:02]}  Bxg2 {[%clk 0:02:44]} 10. Kxg2 {[%clk 0:02:01]}  cxd4 {[%clk 0:02:44]} 11. Qxd4 {[%clk 0:02:02]}  Bg7 {[%clk 0:02:45]} 12. Qd3 {[%clk 0:01:58]}  d5 {[%clk 0:02:41]} 13. cxd5 {[%clk 0:01:12]}  O-O {[%clk 0:02:04]} 14. Bd2 {[%clk 0:01:07]}  e6 {[%clk 0:01:52]} 15. e4 {[%clk 0:00:57]}  exd5 {[%clk 0:01:46]} 16. exd5 {[%clk 0:00:57]}  Qd7 {[%clk 0:01:46]} 17. Rfd1 {[%clk 0:00:54]}  Rfe8 {[%clk 0:01:45]} 18. Rac1 {[%clk 0:00:53]}  Ng4 {[%clk 0:01:44]} 19. h3 {[%clk 0:00:39]}  Ne5 {[%clk 0:01:40]} 20. Qb5 {[%clk 0:00:39]}  Qf5 {[%clk 0:01:36]} 21. Bf4 {[%clk 0:00:39]}  a6 {[%clk 0:01:29]} 22. Qxa6 {[%clk 0:00:34]}  Nd7 {[%clk 0:01:29]} 23. Na4 {[%clk 0:00:23]}  Rxc1 {[%clk 0:01:24]} 24. Bxc1 {[%clk 0:00:24]}  Qe4+ {[%clk 0:01:21]} 25. Kg1 {[%clk 0:00:12]}  Ne5 {[%clk 0:01:21]} 26. Qf1 {[%clk 0:00:05]}  Nf3+ {[%clk 0:01:18]} 27. Kh1 {[%clk 0:00:05]}  Bd4 {[%clk 0:01:14]} 28. d6 {[%clk 0:00:05]}  Ne1+ {[%clk 0:01:00]} 29. Kh2 {[%clk 0:00:03]}  Nf3+ {[%clk 0:00:58]} 30. Kh1 {[%clk 0:00:03]}  Nd2+ {[%clk 0:00:45]} 31. Qg2 {[%clk 0:00:02]}  Qc2 {[%clk 0:00:46]} 32. Rg1 {[%clk 0:00:02]}  Ne4 {[%clk 0:00:46]} 33. f4 {[%clk 0:00:01]}  Qc6 {[%clk 0:00:38]} 34. Rf1 {[%clk 0:00:02]}  Nxg3+ {[%clk 0:00:38]} 35. Kh2 {[%clk 0:00:02]}  Nxf1+ {[%clk 0:00:38]} 36. Qxf1 {[%clk 0:00:03]}  Qxd6 {[%clk 0:00:38]} 37. Qf3 {[%clk 0:00:03]}  Qc7 {[%clk 0:00:36]} 38. Bd2 {[%clk 0:00:03]}  Qc2 {[%clk 0:00:36]} 0-1


[Site "https://www.chess.com"]